bitfinex/quotes_SOLUSD_20250531
["timestamp","ask_amount","ask_price","bid_price","bid_amount"]
[1748661033431,146.9,152.52,152.48,53.03699671]
[1748661033613,34.10302471,152.55,152.51,0.28432314]
[1748661034118,34.10302471,152.53,152.48,34.10302471]
[1748661034432,34.10302471,152.53,152.49,0.28432314]
[1748661034610,34.10302471,152.51,152.47,18.64964886]
[1748661034811,34.10302471,152.51,152.48,0.28432314]
[1748661035110,40.66040175,152.5,152.46,18.933972]
[1748661035328,40.66040175,152.5,152.46,53.03699671]
[1748661035329,6.55737704,152.5,152.46,53.03699671]
[1748661035512,40.66040175,152.5,152.46,18.933972]
[1748661035708,6.55737704,152.5,152.46,53.03699671]
[1748661035911,179.67273257,152.57,152.46,53.03699671]
[1748661035912,34.10302471,152.55,152.5,0.28432314]
[1748661036220,34.10302471,152.56,152.52,0.28432314]
[1748661036524,34.10302471,152.55,152.52,0.28432314]
[1748661036905,34.10302471,152.56,152.52,0.28432314]
[1748661037109,40.65791367,152.56,152.52,0.28432314]
[1748661037416,40.65791367,152.56,152.45,69.67881928]
[1748661037417,6.55488896,152.56,152.49,44.64964886]
[1748661037618,6.55488896,152.56,152.5,0.28432314]
[1748661037619,40.65791367,152.56,152.5,0.28432314]
[1748661038037,34.10302471,152.55,152.5,34.38734785]
[1748661038622,229.51746492,152.57,152.52,0.28432314]
[1748661039125,34.10302471,152.55,152.5,34.10302471]
[1748661039323,82.61818266,152.56,152.51,34.38734785]
[1748661040520,41.96,152.56,152.52,34.10302471]
[1748661040717,229.4774262,152.57,152.52,40.17062471]
[1748661040940,34.10302471,152.56,152.52,6.0676]
[1748661041142,34.10302471,152.53,152.46,18.64964886]
[1748661041437,146.9,152.55,152.46,18.64964886]
[1748661041438,34.10302471,152.51,152.46,18.64964886]
[1748661041614,34.10302471,152.49,152.44,41.72232471]
[1748661041814,34.10302471,152.49,152.45,0.28432314]
[1748661042014,34.10302471,152.5,152.45,34.38734785]
[1748661042416,34.10302471,152.5,152.45,18.933972]
[1748661042651,34.10302471,152.48,152.45,0.14216157]
[1748661042821,34.10302471,152.5,152.46,0.14216157]
[1748661043021,34.10302471,152.49,152.45,0.14216157]
[1748661043236,40.66119532,152.49,152.44,52.75267357]
[1748661043430,34.10302471,152.47,152.42,34.10302471]
[1748661043621,34.10302471,152.47,152.43,18.64964886]
[1748661043968,34.10302471,152.44,152.37,11.34]
[1748661044114,34.10302471,152.41,152.37,11.34]
[1748661044319,34.10302471,152.42,152.37,52.75267357]
[1748661044749,34.10302471,152.42,152.38,0.28432314]
[1748661044945,41.94,152.44,152.36,41.72232471]
[1748661045247,41.94,152.44,152.33,105.84]
[1748661045248,40.66588474,152.38,152.33,45.44302471]
[1748661045546,40.66588474,152.38,152.33,34.10302471]
[1748661045750,40.66588474,152.38,152.33,0.28432314]
[1748661045951,40.66588474,152.38,152.34,18.64964886]
[1748661046330,34.10302471,152.36,152.31,6.0676]
[1748661046529,34.10302471,152.36,152.31,40.17062471]
[1748661046738,34.10302471,152.36,152.32,18.64964886]
[1748661047365,34.10302471,152.38,152.33,34.38734785]
[1748661047534,34.10302471,152.37,152.33,0.28432314]
[1748661047731,34.10302471,152.36,152.32,18.64964886]
[1748661048047,6.56277643,152.38,152.3,26.0]
[1748661048048,52.83336897,152.34,152.3,18.64964886]
[1748661048664,41.98,152.35,152.28,18.64964886]
[1748661048665,52.83336897,152.31,152.28,18.64964886]
[1748661048835,52.83336897,152.29,152.23,52.83336897]
[1748661049038,52.83336897,152.28,152.25,26.0]
[1748661049357,52.83336897,152.28,152.26,18.64964886]
[1748661049543,52.83336897,152.28,152.24,18.64964886]
[1748661049743,52.83336897,152.29,152.25,0.28432314]
[1748661050255,48.54630664,152.3,152.26,71.48301783]
[1748661050453,52.83336897,152.29,152.25,18.933972]
[1748661050949,52.83336897,152.29,152.24,71.48301783]
[1748661051161,41.98,152.3,152.26,18.64964886]
[1748661051329,94.81336897,152.3,152.26,18.64964886]
[1748661051537,94.81336897,152.3,152.25,18.933972]
[1748661051737,94.81336897,152.3,152.25,71.76734097]
[1748661052252,101.37936189,152.3,152.25,71.76734097]
[1748661052859,101.37936189,152.3,152.25,0.28432314]
[1748661053060,41.98,152.3,152.25,53.11769211]
[1748661053271,52.83336897,152.29,152.25,18.933972]
[1748661053431,6.56685053,152.28,152.25,18.933972]
[1748661053634,52.83336897,152.27,152.23,18.64964886]
[1748661053835,94.87336897,152.27,152.23,18.64964886]
[1748661055540,48.60744495,152.27,152.23,71.48301783]
[1748661055862,101.44081392,152.27,152.23,18.64964886]
[1748661056378,42.04,152.27,152.25,18.64964886]
[1748661056539,6.5655935,152.31,152.26,18.64964886]
[1748661056739,101.13909624,152.31,152.26,71.48301783]
[1748661056939,94.83336897,152.3,152.26,18.64964886]
[1748661057245,42.02,152.29,152.26,18.64964886]
[1748661057442,6.5672818,152.27,152.24,18.933972]
[1748661057664,6.5672818,152.27,152.24,18.64964886]
[1748661057842,94.85336897,152.26,152.22,0.085879]
[1748661058861,52.83336897,152.25,152.22,0.085879]
[1748661059040,52.83336897,152.24,152.22,0.085879]
[1748661059240,42.02,152.23,152.22,0.085879]
[1748661059848,48.58900742,152.23,152.22,0.085879]
[1748661060264,42.02,152.23,152.22,18.73552786]
[1748661060866,48.58900742,152.23,152.22,0.085879]
[1748661061067,42.02,152.23,152.22,0.085879]
[1748661061277,6.56555708,152.31,152.23,44.64964886]
[1748661061584,101.43941388,152.3,152.26,18.64964886]
[1748661061876,52.83336897,152.32,152.28,18.64964886]
[1748661062045,76.43751562,152.34,152.29,53.11769211]
[1748661062240,42.04,152.35,152.31,18.64964886]
[1748661062553,158.38,152.38,152.29,0.28432314]
[1748661062554,52.83336897,152.38,152.34,18.64964886]
[1748661062756,94.89336897,152.38,152.34,18.64964886]
[1748661062981,42.06,152.38,152.35,18.64964886]
[1748661063192,94.89336897,152.38,152.34,18.933972]
[1748661063542,94.89336897,152.38,152.34,0.28432314]
[1748661063743,101.45599167,152.38,152.34,0.28432314]
[1748661064161,94.87336897,152.38,152.34,0.28432314]
[1748661064664,52.83336897,152.35,152.31,0.28432314]
[1748661064867,52.83336897,152.36,152.31,53.11769211]
[1748661065072,94.87336897,152.38,152.33,18.933972]
[1748661065247,94.87336897,152.38,152.29,26.0]
[1748661065248,52.83336897,152.35,152.29,26.0]
[1748661065571,59.39735585,152.35,152.31,0.28432314]
[1748661065774,59.39677774,152.36,152.31,0.28432314]
[1748661065970,94.85336897,152.37,152.33,0.28432314]
[1748661066148,94.85336897,152.37,152.32,18.64964886]
[1748661066343,52.83336897,152.36,152.32,18.64964886]
[1748661066680,94.85336897,152.37,152.33,0.28432314]
[1748661067369,42.02,152.37,152.33,0.28432314]
[1748661067570,59.39604752,152.38,152.34,18.64964886]
[1748661067775,52.83336897,152.39,152.34,18.64964886]
[1748661068078,52.83336897,152.39,152.35,18.64964886]
[1748661068079,48.56230669,152.39,152.35,18.64964886]
[1748661068272,82.67518481,152.39,152.35,18.64964886]
[1748661068475,34.11287812,152.38,152.33,53.04685012]
[1748661068681,48.56230669,152.39,152.33,53.04685012]
[1748661068682,34.11287812,152.37,152.33,18.933972]
[1748661069184,34.11287812,152.38,152.33,53.04685012]
[1748661069397,34.11287812,152.37,152.33,18.933972]
[1748661069581,48.56230669,152.39,152.33,18.933972]
[1748661069582,82.67518481,152.39,152.33,53.04685012]
[1748661070065,82.67518481,152.39,152.27,18.64964886]
[1748661070066,34.11287812,152.34,152.27,18.64964886]
[1748661070259,76.09287812,152.35,152.31,18.64964886]
[1748661070458,41.98,152.35,152.31,52.76252698]
[1748661070656,41.98,152.35,152.32,0.14216157]
[1748661070878,41.98,152.35,152.32,0.28432314]
[1748661071474,76.11287812,152.37,152.32,0.28432314]
[1748661071874,82.67609218,152.37,152.32,0.28432314]
[1748661072286,34.11287812,152.35,152.31,18.64964886]
[1748661072675,34.11287812,152.34,152.31,18.64964886]
[1748661073562,76.07287812,152.34,152.31,18.64964886]
[1748661073782,41.96,152.34,152.31,18.64964886]
[1748661074085,48.52456713,152.34,152.31,18.64964886]
[1748661074987,34.11287812,152.37,152.32,52.76252698]
[1748661075187,146.9,152.38,152.31,0.28432314]
[1748661075188,146.9,152.38,152.34,0.28432314]
[1748661075368,146.9,152.38,152.35,18.64964886]
[1748661075688,146.9,152.38,152.37,26.0]
[1748661075988,6.55995801,152.44,152.39,0.28432314]
[1748661076188,6.55995801,152.44,152.41,18.64964886]
[1748661076792,34.11287812,152.43,152.4,18.64964886]
[1748661076970,76.07287812,152.42,152.39,0.28432314]
[1748661077172,41.96,152.42,152.39,0.28432314]
[1748661077587,76.07287812,152.42,152.39,0.28432314]
[1748661077969,6.56093752,152.42,152.39,0.28432314]
[1748661078883,6.56044534,152.43,152.39,53.05528692]
[1748661079385,206.23069614,152.45,152.41,0.28432314]
[1748661079768,44.08848165,152.5,152.44,52.77096378]
[1748661079769,6.55823714,152.48,152.44,52.77096378]
[1748661079959,6.55823714,152.48,152.45,18.64964886]
[1748661080163,52.77096378,152.46,152.43,18.933972]
[1748661080357,52.77096378,152.45,152.43,18.933972]
[1748661080769,94.75096378,152.46,152.43,0.28432314]
[1748661081090,52.77096378,152.46,152.43,0.28432314]
[1748661081470,41.96,152.47,152.42,18.64964886]
[1748661081674,52.77096378,152.46,152.42,18.64964886]
[1748661082091,6.55952771,152.45,152.42,18.64964886]
[1748661082389,59.33049149,152.45,152.42,18.64964886]
[1748661082885,6.55952771,152.45,152.42,18.64964886]
[1748661083185,6.55910575,152.46,152.43,0.28432314]
[1748661083369,6.55910575,152.46,152.44,18.64964886]
[1748661084288,6.55910575,152.46,152.43,18.933972]
[1748661085366,6.55910575,152.46,152.44,18.64964886]
[1748661085567,6.55877107,152.47,152.44,18.64964886]
[1748661085970,41.9,152.48,152.45,0.28432314]
[1748661086171,6.55651717,152.52,152.48,18.933972]
[1748661086368,146.9,152.53,152.5,18.64964886]
[1748661086779,153.45613703,152.53,152.5,0.28432314]
[1748661088680,52.77096378,152.52,152.48,18.64964886]
[1748661088882,153.45613703,152.53,152.48,18.64964886]
[1748661088883,52.77096378,152.51,152.48,18.64964886]
[1748661089083,52.77096378,152.5,152.47,11.72432314]
[1748661089386,94.63096378,152.51,152.47,0.28432314]
[1748661089909,179.45613703,152.53,152.48,71.70493578]
[1748661090194,153.45613703,152.53,152.5,18.933972]
[1748661090505,41.84,152.54,152.52,0.28432314]
[1748661091304,52.77096378,152.56,152.52,0.28432314]
[1748661091604,6.55436848,152.57,152.52,71.70493578]
[1748661091807,153.45398868,152.58,152.54,71.70493578]
[1748661091980,48.39398868,152.58,152.54,71.70493578]
[1748661092673,6.5522212,152.62,152.57,53.05528692]
[1748661092992,6.55188659,152.63,152.6,18.64964886]
[1748661093297,101.16285037,152.63,152.59,0.28432314]
[1748661093504,101.16285037,152.63,152.59,18.933972]
[1748661093704,52.77096378,152.66,152.62,18.64964886]
[1748661093873,52.77096378,152.66,152.63,18.64964886]
[1748661093874,41.86,152.66,152.63,18.64964886]
[1748661094074,41.86,152.66,152.63,71.42061264]
[1748661094302,41.86,152.66,152.63,18.64964886]
[1748661094599,48.41059383,152.66,152.63,18.64964886]
[1748661095114,52.77096378,152.65,152.61,0.28432314]
[1748661095272,48.41059383,152.66,152.62,18.64964886]
[1748661095273,101.18155761,152.66,152.62,18.64964886]
[1748661095881,101.18155761,152.66,152.52,10.0]
[1748661095882,52.77096378,152.63,152.55,18.64964886]
[1748661096178,94.59096378,152.62,152.58,18.64964886]
[1748661096379,41.82,152.62,152.58,18.64964886]
[1748661096682,6.55265054,152.61,152.59,0.28432314]
[1748661097074,59.32312701,152.63,152.59,18.933972]
[1748661097274,85.32232277,152.65,152.61,18.933972]
[1748661097588,94.63096378,152.64,152.59,52.77096378]
[1748661097785,52.77096378,152.62,152.59,0.28432314]
[1748661098505,52.77096378,152.61,152.57,18.64964886]
[1748661098805,52.77096378,152.59,152.55,18.64964886]
[1748661098991,52.77096378,152.59,152.56,0.14216157]
[1748661099173,41.84,152.61,152.58,18.79181043]
[1748661099379,41.84,152.61,152.59,0.14216157]
[1748661099599,59.32355271,152.62,152.59,0.14216157]
[1748661099802,94.63096378,152.63,152.59,0.14216157]
[1748661100115,41.86,152.64,152.61,0.28432314]
[1748661100295,6.55129127,152.65,152.61,18.933972]
[1748661100682,40.54623216,152.65,152.61,18.933972]
[1748661100991,33.99494089,152.65,152.61,18.933972]
[1748661101190,40.54551011,152.66,152.61,18.933972]
[1748661102037,6.55056922,152.66,152.63,0.14216157]
[1748661102203,40.54551011,152.66,152.61,0.28432314]
[1748661102406,6.55056922,152.66,152.63,0.14216157]
[1748661102585,26.0,152.68,152.63,34.27926403]
[1748661102586,40.54468207,152.68,152.63,34.27926403]
[1748661102787,6.54974118,152.68,152.65,18.79181043]
[1748661102995,40.54468207,152.68,152.65,18.79181043]
[1748661103491,195.26930957,152.69,152.65,0.28432314]
[1748661103688,82.36425046,152.69,152.65,0.28432314]
[1748661104190,33.99494089,152.66,152.63,18.64964886]
[1748661104498,64.74235299,152.69,152.63,18.64964886]
[1748661104799,64.74235299,152.69,152.61,0.14216157]
[1748661104800,40.54630357,152.64,152.61,18.64964886]
[1748661105387,33.99494089,152.62,152.59,18.64964886]
[1748661105583,33.99494089,152.62,152.6,0.14216157]
[1748661105809,33.99494089,152.63,152.6,0.14216157]
[1748661106988,33.99494089,152.61,152.56,13.0919]
[1748661107214,33.99494089,152.6,152.57,18.64964886]
[1748661107398,33.99494089,152.61,152.57,18.64964886]
[1748661107590,6.5522212,152.62,152.57,18.64964886]
[1748661107591,33.99494089,152.6,152.57,18.64964886]
[1748661107892,22.9327742,152.62,152.57,18.64964886]
[1748661107893,33.99494089,152.61,152.57,18.64964886]
[1748661108111,33.99494089,152.6,152.57,18.64964886]
[1748661108805,6.5522212,152.62,152.58,0.28432314]
[1748661108996,6.55277124,152.61,152.58,0.28432314]
[1748661109202,48.33231733,152.62,152.59,18.64964886]
[1748661109542,82.32725822,152.62,152.59,18.64964886]
[1748661109716,40.54725822,152.62,152.58,0.28432314]
[1748661110304,33.99494089,152.61,152.58,0.28432314]
[1748661110692,33.99494089,152.6,152.57,18.64964886]
[1748661110892,33.99494089,152.59,152.57,18.64964886]
[1748661111200,6.5535094,152.59,152.54,6.3605]
[1748661111395,33.99494089,152.55,152.49,6.3605]
[1748661111701,33.99494089,152.53,152.49,17.7205]
[1748661112126,33.99494089,152.53,152.5,18.79181043]
[1748661112323,33.99494089,152.53,152.49,17.7205]
[1748661112637,33.99494089,152.53,152.5,18.79181043]
[1748661114419,40.55068254,152.54,152.5,18.79181043]
[1748661114831,41.74,152.55,152.5,18.79181043]
[1748661115151,33.99494089,152.54,152.5,18.79181043]
[1748661115989,75.73494089,152.55,152.51,0.14216157]
[1748661116230,33.99494089,152.57,152.54,0.14216157]
[1748661116426,33.99494089,152.56,152.54,0.14216157]
[1748661117623,33.99494089,152.56,152.51,33.99494089]
[1748661117624,33.99494089,152.55,152.51,0.14216157]
[1748661118117,6.55487411,152.56,152.49,11.36]
[1748661118310,6.55487411,152.56,152.5,18.79181043]
[1748661118311,33.99494089,152.54,152.5,18.79181043]
[1748661118712,33.99494089,152.52,152.5,18.79181043]
[1748661118901,33.99494089,152.53,152.5,18.79181043]
[1748661119300,33.99494089,152.51,152.49,11.36]
[1748661119529,33.99494089,152.51,152.49,0.14216157]
[1748661120202,33.99494089,152.52,152.49,0.14216157]
[1748661120408,40.55120819,152.53,152.49,0.14216157]
[1748661120611,41.72,152.54,152.49,0.28432314]
[1748661120840,206.89494089,152.56,152.53,0.14216157]
[1748661121423,206.89494089,152.56,152.51,18.64964886]
[1748661121424,33.99494089,152.55,152.51,18.64964886]
[1748661121635,33.99494089,152.55,152.52,0.14216157]
[1748661122308,180.89494089,152.56,152.52,18.933972]
[1748661122639,33.99494089,152.55,152.52,0.28432314]
[1748661122854,33.99494089,152.53,152.51,18.64964886]
[1748661123015,33.99494089,152.54,152.51,18.64964886]
[1748661123203,33.99494089,152.53,152.51,18.64964886]
[1748661123539,33.99494089,152.54,152.51,18.64964886]
[1748661124239,33.99494089,152.54,152.5,18.64964886]
[1748661125134,33.99494089,152.55,152.5,52.64458975]
[1748661125443,33.99494089,152.54,152.51,18.64964886]
[1748661125639,33.99494089,152.56,152.52,18.64964886]
[1748661125852,180.89494089,152.6,152.55,33.99494089]
[1748661126064,75.67494089,152.62,152.58,18.64964886]
[1748661126338,33.99494089,152.62,152.58,18.64964886]
[1748661126648,33.99494089,152.6,152.56,0.28432314]
[1748661126805,33.99494089,152.6,152.56,18.933972]
[1748661127008,33.99494089,152.58,152.53,33.99494089]
[1748661127207,33.99494089,152.55,152.53,18.64964886]
[1748661127406,33.99494089,152.54,152.51,17.60536157]
[1748661127634,33.99494089,152.55,152.52,18.64964886]
[1748661127839,40.5502577,152.55,152.52,18.64964886]
[1748661128639,33.99494089,152.55,152.52,18.64964886]
[1748661128837,33.99494089,152.58,152.54,18.64964886]
[1748661129146,33.99494089,152.57,152.54,18.64964886]
[1748661129728,40.54934146,152.57,152.54,18.64964886]
[1748661130246,33.99494089,152.58,152.53,52.92891289]
[1748661130543,33.99494089,152.57,152.53,18.79181043]
[1748661130919,33.99494089,152.56,152.53,0.28432314]
[1748661131352,33.99494089,152.54,152.47,19.0298]
[1748661131551,33.99494089,152.49,152.44,33.99494089]
[1748661132073,33.99494089,152.49,152.45,18.933972]
[1748661132343,6.55770375,152.5,152.43,11.36]
[1748661132344,33.99494089,152.46,152.43,11.36]
[1748661132525,33.99494089,152.45,152.4,33.99494089]
[1748661132723,33.99494089,152.46,152.41,52.92891289]
[1748661132935,75.67494089,152.48,152.43,0.28432314]
[1748661133151,75.67494089,152.48,152.44,18.64964886]
[1748661133321,41.68,152.48,152.45,0.28432314]
[1748661133528,33.99494089,152.49,152.45,0.28432314]
[1748661133743,75.67494089,152.51,152.47,0.28432314]
[1748661134041,33.99494089,152.5,152.47,0.28432314]
[1748661134428,48.237057,152.51,152.47,0.28432314]
[1748661134429,75.67494089,152.51,152.47,0.28432314]
[1748661134727,33.99494089,152.51,152.47,0.28432314]
[1748661135441,26.0,152.52,152.49,0.28432314]
[1748661135648,33.99494089,152.51,152.48,18.64964886]
[1748661135955,33.99494089,152.51,152.47,18.933972]
[1748661136145,66.55147304,152.52,152.48,18.64964886]
[1748661136539,33.99494089,152.5,152.47,0.28432314]
[1748661136745,33.99494089,152.51,152.47,0.28432314]
[1748661137445,66.55147304,152.52,152.47,34.27926403]
[1748661137645,59.99494089,152.52,152.47,40.83791982]
[1748661137831,66.55148684,152.52,152.47,34.27926403]
[1748661138032,33.99494089,152.51,152.47,0.28432314]
[1748661138443,33.99494089,152.5,152.47,0.28432314]
[1748661138632,32.55654595,152.52,152.46,18.64964886]
[1748661138633,33.99494089,152.49,152.46,18.64964886]
[1748661138948,33.99494089,152.48,152.46,18.64964886]
[1748661139133,41.7,152.51,152.46,18.64964886]
[1748661139339,41.7,152.51,152.44,6.55962642]
[1748661139340,33.99494089,152.48,152.44,18.64964886]
[1748661139933,40.55320208,152.48,152.44,18.64964886]
[1748661140246,33.99494089,152.48,152.44,0.14216157]
[1748661140449,33.99494089,152.49,152.45,0.14216157]
[1748661140642,40.55235906,152.5,152.45,34.13710246]
[1748661140839,40.55235906,152.5,152.46,18.64964886]
[1748661141648,33.99494089,152.5,152.47,0.28432314]
[1748661143029,153.45694876,152.51,152.47,0.28432314]
[1748661143030,222.59494089,152.51,152.47,0.28432314]
[1748661143229,153.45701873,152.51,152.48,18.64964886]
[1748661143442,33.99494089,152.49,152.43,18.933972]
[1748661143627,75.69494089,152.5,152.46,18.933972]
[1748661144564,146.9,152.51,152.49,34.27926403]
[1748661144873,11.36,152.57,152.51,18.933972]
[1748661144874,40.55009881,152.56,152.51,18.933972]
[1748661145029,48.25444601,152.57,152.51,52.92891289]
[1748661145235,33.99494089,152.56,152.51,52.92891289]
[1748661145659,75.69494089,152.57,152.53,18.933972]
[1748661146349,40.54955846,152.57,152.53,18.933972]
[1748661146628,33.99494089,152.57,152.53,18.933972]
[1748661147034,33.99494089,152.57,152.53,0.28432314]
[1748661147338,33.99494089,152.56,152.53,0.28432314]
[1748661147542,33.99494089,152.57,152.53,0.28432314]
[1748661147939,221.15402431,152.58,152.53,0.28432314]
[1748661148157,33.99494089,152.56,152.53,0.28432314]
[1748661148864,33.99494089,152.57,152.53,0.28432314]
[1748661149251,33.99494089,152.54,152.51,18.64964886]
[1748661149542,33.99494089,152.52,152.44,52.64458975]
[1748661149734,33.99494089,152.49,152.45,0.28432314]
[1748661149935,41.68,152.52,152.48,52.64458975]
[1748661150156,33.99494089,152.51,152.48,18.64964886]
[1748661150358,33.99494089,152.51,152.47,18.64964886]
[1748661150550,33.99494089,152.51,152.48,0.28432314]
[1748661150751,41.68,152.52,152.48,52.92891289]
[1748661150954,75.67494089,152.52,152.48,18.933972]
[1748661151261,33.99494089,152.5,152.48,18.64964886]
[1748661151470,33.99494089,152.49,152.46,18.64964886]
[1748661151836,33.99494089,152.49,152.45,18.933972]
[1748661152339,40.55194314,152.51,152.45,52.92891289]
[1748661153077,33.99494089,152.5,152.45,52.92891289]
[1748661153367,33.99494089,152.48,152.44,18.64964886]
[1748661153736,33.99494089,152.49,152.45,0.14216157]
[1748661153938,40.55231793,152.5,152.46,18.64964886]
[1748661154239,40.55231793,152.5,152.45,0.28432314]
[1748661154436,33.99494089,152.49,152.45,0.28432314]
[1748661155879,84.07154483,152.52,152.45,0.28432314]
[1748661155880,6.55700185,152.51,152.47,18.933972]
[1748661156361,6.55700185,152.51,152.48,18.64964886]
[1748661156577,40.55194274,152.51,152.48,18.64964886]
[1748661156739,33.99494089,152.5,152.47,0.28432314]
[1748661156937,6.55700185,152.51,152.47,0.28432314]
[1748661157157,40.55194274,152.51,152.47,0.28432314]
[1748661157559,33.99494089,152.5,152.45,33.99494089]
[1748661157766,33.99494089,152.49,152.44,18.933972]
[1748661157944,40.55297071,152.49,152.44,52.92891289]
[1748661158148,40.55297071,152.49,152.44,52.78675132]
[1748661158564,40.55297071,152.49,152.45,0.14216157]
[1748661159047,6.55802982,152.49,152.45,0.14216157]
[1748661159248,6.55802982,152.49,152.45,18.79181043]
[1748661159557,33.99494089,152.48,152.44,18.64964886]
[1748661159757,6.55802982,152.49,152.44,52.64458975]
[1748661160075,6.55802982,152.49,152.45,0.28432314]
[1748661160768,40.55297071,152.49,152.45,0.28432314]
[1748661160971,33.99494089,152.48,152.44,18.64964886]
[1748661161571,33.99494089,152.48,152.41,17.86121464]
[1748661161572,33.99494089,152.46,152.42,18.64964886]
[1748661161779,33.99494089,152.44,152.42,18.64964886]
[1748661161949,40.5551748,152.44,152.4,18.64964886]
[1748661162353,40.5551748,152.44,152.41,0.28432314]
[1748661162569,40.5551748,152.44,152.41,0.14216157]
[1748661162761,6.56023391,152.44,152.41,0.28432314]
[1748661162958,33.99494089,152.43,152.4,18.64964886]
[1748661163365,33.99494089,152.41,152.38,18.64964886]
[1748661163887,33.99494089,152.39,152.36,18.64964886]
[1748661164090,40.5572046,152.39,152.36,18.64964886]
[1748661164670,33.99494089,152.38,152.36,18.64964886]
[1748661165478,33.99494089,152.38,152.34,6.82552314]
[1748661165479,33.99494089,152.38,152.35,18.64964886]
[1748661165980,40.55762685,152.38,152.35,18.64964886]
[1748661167379,40.55762685,152.38,152.32,6.56509324]
[1748661167380,33.99494089,152.36,152.32,18.64964886]
[1748661167567,67.7,152.4,152.33,33.99494089]
[1748661167763,33.99494089,152.37,152.34,18.64964886]
[1748661167966,33.99494089,152.35,152.32,0.14216157]
[1748661168164,33.99494089,152.35,152.32,0.28432314]
[1748661168363,33.99494089,152.34,152.31,18.64964886]
[1748661169177,6.56390281,152.35,152.31,18.64964886]
[1748661169357,40.5588437,152.35,152.31,18.64964886]
[1748661169561,41.7,152.36,152.32,0.28432314]
[1748661169783,41.7,152.36,152.33,18.64964886]
[1748661170171,26.0,152.34,152.33,18.64964886]
[1748661170880,26.0,152.31,152.3,24.92634886]
[1748661171181,26.0,152.31,152.3,25.210672]
[1748661171386,26.0,152.31,152.3,25.06851043]
[1748661171760,26.0,152.31,152.3,18.64964886]
[1748661172780,26.0,152.33,152.3,18.64964886]
[1748661172960,32.56473762,152.33,152.3,18.64964886]
[1748661173160,26.0,152.33,152.3,18.64964886]
[1748661174187,26.0,152.33,152.28,11.60432314]
[1748661174188,32.56474761,152.33,152.28,11.60432314]
[1748661174388,33.99494089,152.31,152.28,0.28432314]
[1748661174692,41.72,152.32,152.28,0.28432314]
[1748661174859,75.71494089,152.32,152.28,0.28432314]
[1748661175060,41.72,152.32,152.29,18.64964886]
[1748661175365,33.99494089,152.31,152.27,18.933972]
[1748661175575,26.0,152.34,152.31,18.64964886]
[1748661175879,101.71494089,152.36,152.31,52.64458975]
[1748661176271,59.99494089,152.36,152.31,52.64458975]
[1748661176470,101.71494089,152.36,152.31,52.64458975]
[1748661176780,108.27843935,152.36,152.31,52.64458975]
[1748661177282,101.71494089,152.36,152.31,59.21011474]
[1748661177481,67.72,152.36,152.32,33.99494089]
[1748661178073,26.0,152.36,152.33,18.64964886]
[1748661178279,172.9,152.38,152.35,52.64458975]
[1748661178479,146.9,152.38,152.37,18.64964886]
[1748661178662,75.71494089,152.42,152.37,52.64458975]
[1748661178866,26.0,152.41,152.37,52.64458975]
[1748661179084,59.99494089,152.41,152.37,18.64964886]
[1748661179968,33.99494089,152.38,152.35,18.64964886]
[1748661180175,75.71494089,152.38,152.35,18.64964886]
[1748661180384,82.27753109,152.38,152.33,34.27926403]
[1748661180588,33.99494089,152.36,152.32,18.64964886]
[1748661180764,33.99494089,152.37,152.32,52.64458975]
[1748661182307,74.2825902,152.38,152.34,33.99494089]
[1748661182308,67.72,152.38,152.34,33.99494089]
[1748661184411,6.56175251,152.4,152.35,52.64458975]
[1748661184589,26.0,152.4,152.35,52.64458975]
[1748661184904,41.72,152.41,152.37,18.64964886]
[1748661185101,101.71494089,152.41,152.35,0.14216157]
[1748661185407,26.0,152.41,152.37,33.99494089]
[1748661185587,67.72,152.41,152.37,33.99494089]
[1748661185980,33.99494089,152.41,152.37,18.64964886]
[1748661186208,33.99494089,152.4,152.37,18.64964886]
[1748661186393,75.71494089,152.41,152.37,18.64964886]
[1748661187602,82.27627648,152.41,152.37,18.64964886]
[1748661188406,146.9,152.44,152.38,52.92891289]
[1748661188703,188.62,152.44,152.41,52.64458975]
[1748661189084,16.39645572,152.48,152.43,18.64964886]
[1748661189085,153.45827121,152.48,152.43,18.64964886]
[1748661189390,146.9,152.48,152.45,18.64964886]
[1748661189592,146.9,152.48,152.44,52.92891289]
[1748661190006,146.9,152.48,152.39,6.56178311]
[1748661190007,33.99494089,152.47,152.39,6.56178311]
[1748661190191,48.27837398,152.48,152.43,18.64964886]
[1748661190192,33.99494089,152.46,152.43,18.64964886]
[1748661190720,33.99494089,152.46,152.42,18.64964886]
[1748661191025,33.99494089,152.44,152.39,33.99494089]
[1748661191184,33.99494089,152.41,152.38,18.64964886]
[1748661191388,33.99494089,152.4,152.37,18.64964886]
[1748661191600,6.56254101,152.38,152.35,18.64964886]
[1748661191802,40.5574819,152.38,152.35,18.64964886]
[1748661192005,26.0,152.4,152.35,18.64964886]
[1748661192006,33.99494089,152.39,152.35,18.64964886]